[Event "WYCC 2018 G14"]
[Site "Halkidiki"]
[Date "2018.10.29"]
[Round "10"]
[White "Jyothsna L"]
[Black "Krasteva, Beloslava"]
[Result "1/2-1/2"]
[ECO "D30"]
[WhiteElo "2060"]
[BlackElo "2089"]
[Annotator "NA"]
[PlyCount "124"]
[EventDate "2018.10.20"]
[EventType "swiss"]
[EventCountry "GRE"]
[SourceTitle "playchess.com"]
[Source "ChessBase"]
[SourceQuality "1"]
[TimeControl "40/5400+30:1800+30"]

1. d4 {[%emt 0:01:03]} d5 {[%emt 0:00:00]} 2. c4 {[%emt 0:00:03]} e6 {[%emt 0:00:31]} 3. cxd5 {[%emt 0:00:08]} exd5 {[%emt 0:00:30]} 4. Nc3 {[%emt 0:00:09]} c6 {[%emt 0:00:52]} 5. Qc2 {[%emt 0:00:42]} Be7 {[%emt 0:07:15]} 6. Bf4 {[%emt 0:00:38]} g6 {[%emt 0:02:12]} 7. e3 {[%emt 0:01:49]} Bf5 {[%emt 0:00:34]} 8. Bd3 {[%emt 0:01:38]} Bxd3 {[%emt 0:00:36]} 9. Qxd3 {[%emt 0:00:09]} Nf6 {[%emt 0:00:16]} 10. Nge2 {[%emt 0:01:24]} O-O {[%emt 0:01:38]} 11. h3 {[%emt 0:01:21]} Nbd7 {[%emt 0:01:22]} 12. O-O {[%emt 0:01:32]} Re8 $11 {[%emt 0:01:39]} 13. Rfc1 {[%emt 0:01:58]} Rc8 {[%emt 0:03:26]} 14. Rc2 {[%emt 0:14:02]} Nf8 {[%emt 0:16:26]} 15. Rac1 {[%emt 0:06:21]} Ne6 {[%emt 0:02:57]} 16. Be5 {[%emt 0:02:30]} Ra8 {[%emt 0:08:04]} 17. Bxf6 {[%emt 0:09:39]} Bxf6 {[%emt 0:00:05]} 18. b4 {[%emt 0:00:51]} a6 {[%emt 0:06:18]} 19. Na4 {[%emt 0:03:35]} Qe7 {[%emt 0:06:08]} 20. Rb1 {[%emt 0:11:31]} Nc7 {[%emt 0:05:41]} 21. Qb3 {[%emt 0:10:20]} Nb5 {[%emt 0:08:51]} 22. Nb6 {[%emt 0:00:20]} Rad8 {[%emt 0:04:57]} 23. a4 {[%emt 0:01:02]} Nd6 {[%emt 0:01:51]} 24. Qd3 {[%emt 0:04:54]} Bg7 {[%emt 0:06:17]} 25. Nc3 {[%emt 0:02:51]} Rb8 {[%emt 0:02:11]} 26. b5 {[%emt 0:01:27]} axb5 {[%emt 0:00:41]} 27. axb5 {[%emt 0:00:26]} Qd8 {[%emt 0:00:33]} 28. bxc6 {[%emt 0:02:08]} bxc6 {[%emt 0:00:04]} 29. Rcb2 {[%emt 0:02:46]} f5 {[%emt 0:04:12]} 30. g3 {[%emt 0:02:44]} Ne4 {[%emt 0:02:40]} 31. Nxe4 {[%emt 0:01:56]} fxe4 {[%emt 0:00:07]} 32. Qc2 {[%emt 0:00:44]} Qd6 {[%emt 0:00:22]} 33. Na4 {[%emt 0:03:09]} Rxb2 {[%emt 0:01:30]} 34. Qxb2 {[%emt 0:00:37]} Bh6 {[%emt 0:01:40]} 35. Kg2 {[%emt 0:01:57]} Rf8 {[%emt 0:00:45]} 36. Nc5 {[%emt 0:02:17]} Qf6 {[%emt 0:01:03]} 37. Qe2 {[%emt 0:02:10]} Rf7 {[%emt 0:00:21]} 38. Rb8+ {[%emt 0:00:52]} Bf8 {[%emt 0:00:16]} 39. Re8 {[%emt 0:00:42]} Re7 {[%emt 0:01:31]} 40. Rxe7 {[%emt 0:00:00]} Bxe7 {[%emt 0:00:00]} 41. Nd7 {[%emt 0:12:44]} Qe6 {[%emt 0:03:31]} 42. Qg4 {[%emt 0:05:36]} Qxg4 {[%emt 0:01:32]} 43. hxg4 {[%emt 0:00:09]} Kg7 {[%emt 0:09:34]} 44. f3 {[%emt 0:06:47]} exf3+ {[%emt 0:00:41]} 45. Kxf3 {[%emt 0:00:07]} Bd6 {[%emt 0:00:16]} 46. g5 {[%emt 0:01:56]} Kf7 {[%emt 0:00:54]} 47. g4 {[%emt 0:00:41]} Ke6 {[%emt 0:01:50]} 48. Nb6 {[%emt 0:00:44]} Be7 {[%emt 0:03:03]} 49. Kf4 {[%emt 0:00:29]} c5 {[%emt 0:01:51]} 50. dxc5 {[%emt 0:00:20]} Bxc5 {[%emt 0:00:06]} 51. Na4 {[%emt 0:00:16]} Bb4 {[%emt 0:01:40]} 52. Nb2 {[%emt 0:00:44]} Bd2 {[%emt 0:01:01]} 53. Kf3 {[%emt 0:00:15]} d4 {[%emt 0:00:53]} 54. exd4 {[%emt 0:01:20]} Kd5 {[%emt 0:00:08]} 55. Nd3 {[%emt 0:01:26]} Kxd4 {[%emt 0:00:38]} 56. Nf2 {[%emt 0:00:20]} Bxg5 {[%emt 0:00:17]} 57. Ne4 {[%emt 0:00:49]} Bd8 {[%emt 0:02:07]} 58. Nf2 {[%emt 0:01:44]} Ke5 {[%emt 0:00:14]} 59. Ne4 {[%emt 0:00:32]} h6 {[%emt 0:00:55]} 60. Nf2 {[%emt 0:00:40]} Bb6 {[%emt 0:00:50]} 61. Nd3+ {[%emt 0:00:19]} Kf6 {[%emt 0:00:21]} 62. Nf4 {[%emt 0:00:04]} Bc5 {[%emt 0:00:23]} 1/2-1/2

[Event "WYCC 2018 G14"]
[Site "Halkidiki"]
[Date "2018.10.29"]
[Round "10"]
[White "Dylag, Emilia"]
[Black "Zeng, Sheena"]
[Result "1-0"]
[ECO "C00"]
[WhiteElo "2059"]
[BlackElo "1807"]
[Annotator "NA"]
[PlyCount "99"]
[EventDate "2018.10.20"]
[EventType "swiss"]
[EventCountry "GRE"]
[SourceTitle "playchess.com"]
[Source "ChessBase"]
[SourceQuality "1"]
[TimeControl "40/5400+30:1800+30"]

1. e4 {[%emt 0:00:00]} e6 2. d3 {[%emt 0:00:00]} d5 {[%emt 0:00:00]} 3. Nd2 {[%emt 0:00:00]} Nf6 {[%emt 0:00:52]} 4. Ngf3 {[%emt 0:00:21]} c5 {[%emt 0:00:21]} 5. g3 {[%emt 0:00:19]} Nc6 {[%emt 0:01:13]} 6. Bg2 {[%emt 0:00:18]} Be7 {[%emt 0:01:05]} 7. O-O {[%emt 0:00:19]} O-O {[%emt 0:00:19]} 8. e5 {[%emt 0:00:36]} Nd7 {[%emt 0:00:19]} 9. Re1 {[%emt 0:00:19]} b5 {[%emt 0:03:36]} 10. Nf1 {[%emt 0:01:09]} b4 {[%emt 0:01:04]} 11. h4 {[%emt 0:02:37]} a5 12. Bf4 {[%emt 0:00:30]} a4 {[%emt 0:10:03]} 13. h5 {[%emt 0:05:22] C00: French: Unusual White 2nd moves} (13. a3 bxa3 14. bxa3 Re8 15. Ne3 Bb7 16. h5 Bf8 17. Rb1 Rb8 18. c4 dxc4 19. dxc4 Qc7 20. Qxa4 Nd4 21. Nd2 Bxg2 22. Nxg2 {½-½ (38) Giri,A (2785)-So,W (2815) chess.com INT 2017}) 13... a3 {[%emt 0:10:20]} 14. b3 {[%emt 0:01:46]} Na7 {[%emt 0:03:43]} 15. N1h2 {[%emt 0:06:48]} Nb5 {[%emt 0:04:38]} 16. h6 $146 {[%emt 0:02:57]} g6 {[%emt 0:03:01]} 17. Ng4 {[%emt 0:03:35]} Ba6 {[%emt 0:05:53]} 18. Qd2 {[%emt 0:07:20]} Nc3 {[%emt 0:09:15]} 19. Bg5 $11 {[%emt 0:08:29]} Rc8 {[%emt 0:04:36]} 20. Bh3 {[%emt 0:08:26]} (20. Qf4 c4 21. Bxe7 Qxe7 22. dxc4 dxc4 {1-0 (60) Kopp,P (2078)-Huschens,M (1929) Hofheim 2016}) 20... c4 {[%emt 0:08:47]} 21. Bxe7 {[%emt 0:10:04]} Qxe7 {[%emt 0:00:06]} 22. dxc4 {[%emt 0:00:28]} Rfd8 {[%emt 0:05:13]} 23. cxd5 {[%emt 0:07:42]} Nxd5 {[%emt 0:00:36]} 24. Rad1 {[%emt 0:13:28]} N7b6 {[%emt 0:04:14]} 25. Qg5 {[%emt 0:04:05]} Qf8 {[%emt 0:05:34]} 26. Nd4 {[%emt 0:06:12]} Ne7 {[%emt 0:05:34]} 27. Nf6+ {[%emt 0:02:35]} Kh8 {[%emt 0:00:05]} 28. Ne4 {[%emt 0:05:54]} Ned5 {[%emt 0:09:59]} 29. Nd6 {[%emt 0:00:24]} Ra8 {[%emt 0:00:15]} 30. Bxe6 {[%emt 0:01:38]} Rxd6 {[%emt 0:01:36]} 31. exd6 {[%emt 0:00:23]} fxe6 {[%emt 0:00:45]} 32. d7 {[%emt 0:01:01]} Qf6 {[%emt 0:01:05]} 33. Qxf6+ {[%emt 0:00:25]} Nxf6 {[%emt 0:00:05]} 34. Nxe6 {[%emt 0:00:19]} Nfxd7 {[%emt 0:00:28]} 35. Nc7 {[%emt 0:00:20]} Rc8 {[%emt 0:00:50]} 36. Nxa6 {[%emt 0:00:12]} Kg8 {[%emt 0:00:21]} 37. Nxb4 {[%emt 0:00:15]} Kf7 {[%emt 0:00:28]} 38. Re3 {[%emt 0:00:53]} Nf6 {[%emt 0:00:18]} 39. c4 {[%emt 0:00:35]} Ng4 {[%emt 0:00:46]} 40. Rf3+ {[%emt 0:00:00]} Kg8 {[%emt 0:00:00]} 41. Nd5 {[%emt 0:00:55]} Nxd5 {[%emt 0:00:59]} 42. Rxd5 {[%emt 0:00:30]} Nxh6 {[%emt 0:00:09]} 43. Rfd3 {[%emt 0:00:36]} Nf7 {[%emt 0:00:43]} 44. c5 {[%emt 0:00:14]} Kf8 {[%emt 0:00:24]} 45. b4 {[%emt 0:00:22]} Ke7 {[%emt 0:00:15]} 46. b5 {[%emt 0:02:37]} Ke6 {[%emt 0:00:19]} 47. b6 {[%emt 0:00:33]} Rb8 {[%emt 0:00:17]} 48. R5d4 {[%emt 0:00:40]} Rc8 {[%emt 0:01:15]} 49. b7 {[%emt 0:00:22]} Rb8 {[%emt 0:00:10]} 50. c6 {[%emt 0:00:11] Kd5} 1-0

[Event "WYCC 2018 G14"]
[Site "Halkidiki"]
[Date "2018.10.29"]
[Round "10"]
[White "Mehmed, Elif"]
[Black "Kumar, Arya"]
[Result "1-0"]
[ECO "B11"]
[WhiteElo "2049"]
[BlackElo "1619"]
[Annotator "NA"]
[PlyCount "119"]
[EventDate "2018.10.20"]
[EventType "swiss"]
[EventCountry "GRE"]
[SourceTitle "playchess.com"]
[Source "ChessBase"]
[SourceQuality "1"]
[TimeControl "40/5400+30:1800+30"]

1. e4 {[%emt 0:00:00]} c6 {[%emt 0:00:00]} 2. Nc3 {[%emt 0:00:00]} d5 {[%emt 0:00:00]} 3. Nf3 {[%emt 0:00:00]} Bg4 {[%emt 0:00:00]} 4. h3 {[%emt 0:00:00]} Bxf3 {[%emt 0:00:00]} 5. Qxf3 {[%emt 0:00:00]} e6 {[%emt 0:00:00]} 6. d3 {[%emt 0:00:13] LiveBook: 549 Games} Bd6 {[%emt 0:00:42]} 7. Qg4 {[%emt 0:10:14] B11: Caro-Kann: Two Knights Variation} (7. g3 Ne7 8. Bg2 Qb6 9. O-O Nd7 10. Qe2 Bxg3 11. Be3 d4 12. fxg3 dxe3 13. Nd1 O-O 14. c3 f5 15. Nxe3 fxe4 16. Bxe4 {1-0 (53) Ivanchuk,V (2731)-Mamedyarov,S (2757) Beijing 2013}) 7... Nf6 $146 {[%emt 0:08:44]} ({Predecessor:} 7... Be5 8. Bd2 h5 9. Qe2 Bxc3 10. Bxc3 d4 11. Bd2 Nf6 12. g3 c5 13. Bg2 Nc6 14. a3 e5 {0-1 (53) Heimrath,R (2144)-Albert,J (2058) Nuremberg 2005}) 8. Qxg7 {[%emt 0:01:12]} Rg8 {[%emt 0:00:07]} 9. Qh6 {[%emt 0:00:06]} Rg6 {[%emt 0:09:04]} 10. Qh4 {[%emt 0:00:44]} d4 {[%emt 0:06:15]} 11. Ne2 {[%emt 0:02:02]} Bb4+ {[%emt 0:00:22]} 12. Kd1 {[%emt 0:02:36]} Be7 {[%emt 0:01:52]} 13. Qf4 {[%emt 0:01:24]} c5 {[%emt 0:01:54]} 14. Qf3 {[%emt 0:01:17]} Nc6 {[%emt 0:02:16]} 15. Nf4 {[%emt 0:01:10]} Rg8 {[%emt 0:02:31]} 16. Nh5 {[%emt 0:01:07]} Ne5 {[%emt 0:02:26]} 17. Nxf6+ {[%emt 0:00:05]} Bxf6 {[%emt 0:00:06]} 18. Qh5 {[%emt 0:00:05]} Rc8 {[%emt 0:07:55]} 19. f4 {[%emt 0:02:40]} Ng6 $18 {[%emt 0:00:24]} 20. e5 {[%emt 0:12:05]} Be7 {[%emt 0:04:59]} 21. Qf3 {[%emt 0:03:19]} Qc7 {[%emt 0:06:29]} 22. g3 {[%emt 0:03:54]} b5 {[%emt 0:06:35]} 23. Bg2 {[%emt 0:09:01]} Kd7 {[%emt 0:15:12]} 24. Qb7 {[%emt 0:07:48]} Qxb7 {[%emt 0:03:17]} 25. Bxb7 {[%emt 0:00:05]} Rc7 {[%emt 0:00:19]} 26. Be4 {[%emt 0:00:23]} Bf8 {[%emt 0:01:58]} 27. Ke2 {[%emt 0:10:39]} c4 {[%emt 0:08:46]} 28. dxc4 {[%emt 0:02:28]} Rxc4 {[%emt 0:03:36]} 29. Rd1 {[%emt 0:05:13]} Ne7 {[%emt 0:02:31]} 30. Kf3 {[%emt 0:11:47]} Nd5 {[%emt 0:02:17]} 31. Bxh7 {[%emt 0:01:01]} Rh8 {[%emt 0:00:32]} 32. Bd3 {[%emt 0:00:11]} Rc5 {[%emt 0:00:06]} 33. h4 {[%emt 0:00:27]} Nb4 {[%emt 0:01:06]} 34. a3 {[%emt 0:02:45]} Nxd3 {[%emt 0:00:46]} 35. Rxd3 {[%emt 0:00:04]} Rxc2 {[%emt 0:00:09]} 36. Rxd4+ {[%emt 0:00:06]} Kc7 {[%emt 0:00:44]} 37. Rd2 {[%emt 0:00:12]} Rc4 {[%emt 0:00:37]} 38. Re2 {[%emt 0:00:36]} Bc5 {[%emt 0:00:33]} 39. Bd2 {[%emt 0:00:28]} Rd8 {[%emt 0:01:17]} 40. b3 {[%emt 0:00:00]} Rd3+ {[%emt 0:00:00]} 41. Kg2 {[%emt 0:03:36]} Rxb3 {[%emt 0:01:22]} 42. Ba5+ {[%emt 0:09:43]} Kc6 {[%emt 0:07:54]} 43. h5 {[%emt 0:10:35]} Rd3 {[%emt 0:07:16]} 44. h6 {[%emt 0:03:51]} Bb6 {[%emt 0:00:43]} 45. Bb4 {[%emt 0:02:44]} Bc5 {[%emt 0:01:14]} 46. Rd2 {[%emt 0:02:55]} Rxd2+ {[%emt 0:09:08]} 47. Bxd2 {[%emt 0:00:07]} Rc2 {[%emt 0:00:03]} 48. Rd1 {[%emt 0:00:26]} Bf8 {[%emt 0:00:09]} 49. h7 {[%emt 0:00:05]} Bg7 {[%emt 0:00:05]} 50. Rc1 {[%emt 0:01:03]} Rxc1 {[%emt 0:02:10]} 51. Bxc1 {[%emt 0:00:03]} Kd7 {[%emt 0:00:14]} 52. Kf3 {[%emt 0:01:11]} Ke8 {[%emt 0:02:01]} 53. Ke4 {[%emt 0:04:00]} Kf8 {[%emt 0:04:49]} 54. f5 {[%emt 0:00:47]} exf5+ {[%emt 0:01:32]} 55. Kxf5 {[%emt 0:00:06]} Bh8 {[%emt 0:01:18]} 56. Bh6+ {[%emt 0:00:34]} Ke7 {[%emt 0:00:17]} 57. Bg5+ {[%emt 0:00:17]} Kf8 {[%emt 0:00:03]} 58. Bf6 {[%emt 0:00:05]} Bg7 {[%emt 0:00:05]} 59. e6 {[%emt 0:00:42]} fxe6+ {[%emt 0:01:08]} 60. Kg6 {[%emt 0:00:05]} 1-0

[Event "WYCC 2018 G14"]
[Site "Halkidiki"]
[Date "2018.10.29"]
[Round "10"]
[White "Dhyana Patel"]
[Black "Zhou, Iris"]
[Result "1-0"]
[ECO "B62"]
[WhiteElo "2002"]
[BlackElo "1779"]
[Annotator "NA"]
[PlyCount "121"]
[EventDate "2018.10.20"]
[EventType "swiss"]
[EventCountry "GRE"]
[SourceTitle "playchess.com"]
[Source "ChessBase"]
[SourceQuality "1"]
[TimeControl "40/5400+30:1800+30"]

1. e4 {[%emt 0:00:00]} c5 {[%emt 0:00:00]} 2. Nf3 {[%emt 0:00:00]} d6 {[%emt 0:00:00]} 3. d4 {[%emt 0:00:24]} Nf6 {[%emt 0:00:00]} 4. Nc3 {[%emt 0:06:30]} cxd4 {[%emt 0:00:00]} 5. Nxd4 {[%emt 0:02:17]} Nc6 {[%emt 0:00:00]} 6. Bg5 {[%emt 0:01:13]} e6 {[%emt 0:00:00]} 7. Bb5 {[%emt 0:01:45]} Bd7 {[%emt 0:00:04]} 8. Bxc6 {[%emt 0:00:43]} bxc6 {[%emt 0:00:05]} 9. O-O {[%emt 0:00:52] B62: Sicilian: Richter-Rauzer: 6...e6: Unusual White 7th moves} (9. Qf3 c5 10. Nb3 Be7 11. O-O-O Rc8 12. e5 dxe5 13. Bxf6 gxf6 14. Ne4 f5 15. Nd6+ Bxd6 16. Rxd6 Qg5+ 17. Kb1 Qf4 18. Qb7 {1-0 (27) Sychev,K (2534)-Murzin,V (2340) Sochi 2018}) 9... Be7 {[%emt 0:01:33]} 10. Nf3 {[%emt 0:03:21]} Qc7 {[%emt 0:05:24]} 11. Re1 {[%emt 0:00:30]} h6 $146 {[%emt 0:02:55]} ({Predecessor:} 11... e5 12. Qd2 Be6 13. b4 O-O 14. a4 h6 15. Bh4 Rab8 16. Rab1 Rb7 {0-1 (27) Velasques,W (2008)-Martins,E (2261) ICCF email 2007}) 12. Bf4 {[%emt 0:02:24]} e5 {[%emt 0:00:45]} 13. Bg3 {[%emt 0:01:28]} O-O {[%emt 0:01:33]} 14. Na4 {[%emt 0:00:43]} Be6 {[%emt 0:02:30]} 15. b3 {[%emt 0:00:31]} Nd7 {[%emt 0:08:26]} 16. c4 {[%emt 0:01:31]} Qa5 {[%emt 0:02:43]} 17. Rc1 {[%emt 0:05:09]} Nc5 {[%emt 0:02:28]} 18. Nc3 {[%emt 0:03:07]} f5 {[%emt 0:04:49]} 19. exf5 {[%emt 0:18:19]} Bxf5 {[%emt 0:00:11]} 20. Nxe5 {[%emt 0:03:53]} dxe5 {[%emt 0:01:13]} 21. Rxe5 {[%emt 0:00:29]} Rad8 $19 {[%emt 0:11:45]} 22. Qh5 {[%emt 0:16:10]} Bg6 {[%emt 0:03:55]} 23. Qxg6 {[%emt 0:01:15]} Qxc3 {[%emt 0:00:14]} 24. Qb1 {[%emt 0:11:13]} Qxc1+ {[%emt 0:12:34]} 25. Qxc1 {[%emt 0:00:13]} Nd3 {[%emt 0:00:04]} 26. Qc2 {[%emt 0:03:07]} Nxe5 {[%emt 0:00:06]} 27. Bxe5 {[%emt 0:00:04]} Bc5 {[%emt 0:00:55]} 28. Bg3 {[%emt 0:00:16]} Rde8 {[%emt 0:01:57]} 29. h4 {[%emt 0:02:09]} Re1+ {[%emt 0:02:16]} 30. Kh2 {[%emt 0:00:05]} Rf1 {[%emt 0:00:28]} 31. Qe2 {[%emt 0:02:37]} Bxf2 {[%emt 0:01:18]} 32. Qe6+ {[%emt 0:00:09]} Kh8 {[%emt 0:01:37]} 33. Be5 {[%emt 0:01:11]} Bg1+ {[%emt 0:00:14]} 34. Kh3 {[%emt 0:00:04]} Kh7 {[%emt 0:00:49]} 35. Qxc6 {[%emt 0:00:31]} Bf2 {[%emt 0:03:18]} 36. Qe4+ {[%emt 0:01:18]} Kh8 {[%emt 0:01:16]} 37. g3 {[%emt 0:02:36]} Re1 {[%emt 0:01:19]} 38. Qd5 {[%emt 0:00:07]} Re3 {[%emt 0:01:07]} 39. Qd6 {[%emt 0:01:14]} Kg8 {[%emt 0:02:01]} 40. h5 {[%emt 0:00:00]} Rff3 {[%emt 0:00:00]} 41. Qe6+ {[%emt 0:02:45]} Rf7 {[%emt 0:05:40]} 42. Qd5 {[%emt 0:00:27]} Ref3 {[%emt 0:02:10]} 43. Bf4 {[%emt 0:01:22]} Rc3 {[%emt 0:00:51]} 44. Qd2 {[%emt 0:00:12]} Rf3 {[%emt 0:04:20]} 45. Kg2 {[%emt 0:00:21]} R3xf4 {[%emt 0:01:13]} 46. gxf4 {[%emt 0:00:07]} Bb6 {[%emt 0:00:08]} 47. Qd5 {[%emt 0:00:12]} Bc7 {[%emt 0:00:39]} 48. f5 {[%emt 0:00:21]} Kf8 {[%emt 0:00:43]} 49. Qa8+ {[%emt 0:00:14]} Ke7 {[%emt 0:00:10]} 50. Qxa7 {[%emt 0:00:03]} Kd6 {[%emt 0:01:46]} 51. Qd4+ {[%emt 0:00:07]} Ke7 {[%emt 0:00:14]} 52. Qd5 {[%emt 0:00:05]} Rf6 {[%emt 0:00:37]} 53. c5 {[%emt 0:00:09]} Ra6 {[%emt 0:00:28]} 54. b4 {[%emt 0:00:05]} Ra3 {[%emt 0:00:37]} 55. Qe6+ {[%emt 0:00:04]} Kd8 {[%emt 0:00:17]} 56. Qg8+ {[%emt 0:00:10]} Kd7 {[%emt 0:00:08]} 57. Qxg7+ {[%emt 0:00:05]} Kc8 {[%emt 0:00:12]} 58. Qg8+ {[%emt 0:00:10]} Kb7 {[%emt 0:00:07]} 59. f6 {[%emt 0:00:05]} Rd3 {[%emt 0:00:29]} 60. f7 {[%emt 0:00:33]} Rd2+ {[%emt 0:00:07]} 61. Kf3 {[%emt 0:00:05]} 1-0

[Event "WYCC 2018 G14"]
[Site "Halkidiki"]
[Date "2018.10.29"]
[Round "10"]
[White "Mrudul Dehankar"]
[Black "Kuhar, Larisa"]
[Result "1-0"]
[ECO "B53"]
[WhiteElo "1996"]
[BlackElo "1916"]
[Annotator "NA"]
[PlyCount "57"]
[EventDate "2018.10.20"]
[EventType "swiss"]
[EventCountry "GRE"]
[SourceTitle "playchess.com"]
[Source "ChessBase"]
[SourceQuality "1"]
[TimeControl "40/5400+30:1800+30"]

1. e4 {[%emt 0:00:00]} c5 {[%emt 0:00:00]} 2. Nf3 {[%emt 0:00:00]} d6 {[%emt 0:00:00]} 3. d4 {[%emt 0:00:00]} cxd4 {[%emt 0:00:00]} 4. Qxd4 {[%emt 0:00:04]} Nc6 {[%emt 0:00:55]} 5. Bb5 {[%emt 0:00:07]} Bd7 {[%emt 0:00:10]} 6. Bxc6 {[%emt 0:00:08]} Bxc6 {[%emt 0:00:08]} 7. Nc3 {[%emt 0:01:03]} Nf6 {[%emt 0:04:26]} 8. Bg5 {[%emt 0:00:35]} e6 {[%emt 0:04:56]} 9. O-O-O {[%emt 0:00:41]} Be7 $1 {[%emt 0:01:52] LiveBook: 1383 Games} 10. Qd3 {[%emt 0:02:09]} Qa5 {[%emt 0:05:54]} 11. h4 {[%emt 0:02:01]} O-O {[%emt 0:07:36]} 12. Nd4 {[%emt 0:01:01]} Rac8 {[%emt 0:02:30]} 13. f4 {[%emt 0:07:10]} Rfd8 {[%emt 0:08:54] B53: Sicilian: 2...d6: Lines with Qxd4} (13... Rfe8 14. f5 Bd7 15. Nb3 Qc7 16. e5 Nd5 17. fxe6 fxe6 18. Nxd5 exd5 19. Qxd5+ Kh8 20. c3 Bc6 21. exd6 Bxd5 22. dxc7 Bxb3 23. axb3 Bxg5+ 24. hxg5 Rxc7 {1-0 (43) Ma,Q (2606)-Wang,P (2457) Auckland 2016}) 14. Kb1 {[%emt 0:06:38]} a6 {[%emt 0:03:01]} 15. a3 $146 {[%emt 0:07:24]} ({Predecessor:} 15. f5 Bd7 16. g4 b5 17. Nce2 Re8 18. Nf4 Bd8 19. Nh5 Nxh5 20. gxh5 exf5 21. exf5 {1-0 (40) Tseitlin,M (2419)-Ivanovic,B (2409) Thessaloniki 2011}) 15... b5 {[%emt 0:12:46]} 16. e5 {[%emt 0:06:34]} dxe5 {[%emt 0:12:32]} 17. fxe5 $18 {[%emt 0:00:19]} Qc7 {[%emt 0:10:59]} 18. exf6 {[%emt 0:01:35]} Bc5 {[%emt 0:00:29]} 19. Nce2 {[%emt 0:05:01]} e5 {[%emt 0:01:50]} 20. Qg3 {[%emt 0:05:05]} Bxd4 {[%emt 0:04:42]} 21. Nxd4 {[%emt 0:02:11]} Be4 {[%emt 0:03:45]} 22. Bf4 {[%emt 0:04:39]} g6 {[%emt 0:02:01]} 23. Bxe5 {[%emt 0:00:53]} Bxc2+ {[%emt 0:00:47]} 24. Ka1 {[%emt 0:00:17]} Qd7 {[%emt 0:07:14]} 25. Nxc2 {[%emt 0:02:17]} Qxd1+ {[%emt 0:00:42]} 26. Rxd1 {[%emt 0:00:05]} Rxd1+ {[%emt 0:00:06]} 27. Ka2 {[%emt 0:00:02]} Rxc2 {[%emt 0:01:10]} 28. Qf4 {[%emt 0:00:24]} Kf8 {[%emt 0:01:47]} 29. Bd6+ {[%emt 0:00:20]} 1-0

[Event "WYCC 2018 G14"]
[Site "Halkidiki"]
[Date "2018.10.29"]
[Round "10"]
[White "Sim, Jia Ru"]
[Black "De Rycke, Tyani"]
[Result "1-0"]
[ECO "B40"]
[WhiteElo "1979"]
[BlackElo "1758"]
[Annotator "NA"]
[PlyCount "101"]
[EventDate "2018.10.20"]
[EventType "swiss"]
[EventCountry "GRE"]
[SourceTitle "playchess.com"]
[Source "ChessBase"]
[SourceQuality "1"]
[TimeControl "40/5400+30:1800+30"]

1. e4 {[%emt 0:00:00]} c5 {[%emt 0:00:00]} 2. Nf3 {[%emt 0:00:00]} e6 {[%emt 0:00:00]} 3. c3 {[%emt 0:00:00]} d5 {[%emt 0:00:00]} 4. exd5 {[%emt 0:00:03]} Qxd5 {[%emt 0:00:08]} 5. d4 {[%emt 0:00:09]} Nf6 {[%emt 0:00:18]} 6. Be2 {[%emt 0:00:14]} Nc6 {[%emt 0:00:14]} 7. O-O {[%emt 0:00:19]} cxd4 {[%emt 0:00:42]} 8. cxd4 {[%emt 0:00:10]} Be7 {[%emt 0:00:38]} 9. Nc3 {[%emt 0:00:20]} Qd8 {[%emt 0:00:37]} 10. a3 {[%emt 0:01:08]} O-O {[%emt 0:00:40]} 11. Bf4 {[%emt 0:01:42] B22: Sizilianisch (Alapin 2.c3)} Nd5 {[%emt 0:01:50]} 12. Bg3 {[%emt 0:00:28]} Bd6 $146 {[%emt 0:04:07]} ({Vorgänger:} 12... a6 13. Qc2 Bf6 14. Rfd1 Nce7 15. Ne4 Nf5 16. Nxf6+ Nxf6 17. Be5 Nd5 18. Bd3 h6 {0-1 (61) Cave,C (2205)-Ahmad,A (2350) Elista 1998}) 13. Bc4 {[%emt 0:06:37]} Bxg3 {[%emt 0:01:06]} 14. hxg3 {[%emt 0:00:18]} Nce7 {[%emt 0:00:25]} 15. Qd3 {[%emt 0:02:20]} h6 {[%emt 0:11:23]} 16. Rac1 {[%emt 0:04:11]} b6 {[%emt 0:01:38]} 17. Ba2 {[%emt 0:02:06]} Bb7 {[%emt 0:02:14]} 18. Bb1 {[%emt 0:01:29]} Nf6 {[%emt 0:00:26]} 19. Ne5 {[%emt 0:01:39]} g6 {[%emt 0:14:11]} 20. Rfd1 {[%emt 0:02:02]} Qd6 {[%emt 0:01:48]} 21. Ba2 {[%emt 0:14:09]} a6 {[%emt 0:02:18]} 22. g4 {[%emt 0:08:10]} Nfd5 $16 {[%emt 0:04:35]} (22... Kg7 $11 {keeps the balance.}) 23. Ne4 {[%emt 0:04:07]} Qd8 {[%emt 0:02:05]} 24. Qd2 {[%emt 0:08:15]} Kg7 {[%emt 0:01:08]} 25. g5 {[%emt 0:01:11]} h5 {[%emt 0:04:00]} 26. Nf6 {[%emt 0:22:50]} Nf5 {[%emt 0:12:03]} 27. Ned7 {[%emt 0:04:30]} Rh8 {[%emt 0:01:09]} 28. Bxd5 {[%emt 0:01:18]} Bxd5 {[%emt 0:00:14]} 29. Qf4 {[%emt 0:00:09]} Rg8 30. Qe5 {[%emt 0:00:41]} Kh8 {[%emt 0:14:32]} 31. Nxd5+ {[%emt 0:00:19]} f6 {[%emt 0:00:12]} 32. N5xf6 {[%emt 0:00:42]} Rg7 {[%emt 0:00:16]} 33. Rc7 {[%emt 0:01:06]} b5 {[%emt 0:00:29]} 34. Rdc1 {[%emt 0:00:35]} Ne7 {[%emt 0:02:41]} 35. Qxe6 {[%emt 0:00:43]} Nf5 {[%emt 0:00:23]} 36. Qd5 {[%emt 0:05:27]} a5 {[%emt 0:01:29]} 37. Qxa8 {[%emt 0:01:30]} Qxa8 {[%emt 0:00:29]} 38. Rc8+ {[%emt 0:00:04]} Rg8 {[%emt 0:00:13]} 39. Rxg8+ {[%emt 0:00:07]} Qxg8 {[%emt 0:00:06]} 40. Nxg8 {[%emt 0:00:00]} Kxg8 {[%emt 0:00:00]} 41. Nf6+ {[%emt 0:00:13]} Kf7 {[%emt 0:00:14]} 42. d5 {[%emt 0:00:18]} Nd4 {[%emt 0:00:09]} 43. Rc7+ {[%emt 0:00:13]} Kf8 {[%emt 0:00:05]} 44. d6 {[%emt 0:00:18]} Ne6 {[%emt 0:00:10]} 45. Rc8+ {[%emt 0:00:13]} Kf7 {[%emt 0:00:07]} 46. d7 {[%emt 0:00:05]} Ke7 {[%emt 0:00:10]} 47. Re8+ {[%emt 0:00:06]} Kd6 {[%emt 0:00:10]} 48. Rxe6+ {[%emt 0:00:08]} Kxe6 {[%emt 0:00:06]} 49. d8=Q {[%emt 0:00:09]} Kf7 {[%emt 0:00:06]} 50. Qe8+ {[%emt 0:00:09]} Kg7 {[%emt 0:00:06]} 51. Qg8# {[%emt 0:00:08]} 1-0